bitfinex-derivatives/quotes_BNBF0:USTF0_20230901
["timestamp","ask_amount","ask_price","bid_price","bid_amount"]
[1693599565021,0.17225473,214.14,213.55,0.86047029]
[1693599565218,0.17225473,214.16,213.53,0.86047029]
[1693599565522,0.17225473,214.15,213.54,0.86047029]
[1693599565720,0.17225473,214.14,213.55,0.86047029]
[1693599565920,0.17225473,214.13,213.56,0.86047029]
[1693599566121,0.17225473,214.12,213.53,0.86047029]
[1693599566318,0.17225473,214.11,213.54,0.86047029]
[1693599566518,0.17225473,214.18,213.53,0.86047029]
[1693599566729,0.17225473,214.17,213.54,0.86047029]
[1693599566919,0.17225473,214.2,213.55,0.86047029]
[1693599567219,0.17225473,214.19,213.53,0.93638504]
[1693599567421,0.17225473,214.18,213.54,0.93638504]
[1693599567617,0.17225473,214.24,213.55,0.86047029]
[1693599567820,0.17225473,214.23,213.56,0.86047029]
[1693599568022,0.17225473,214.24,213.54,0.86047029]
[1693599568222,0.17225473,214.23,213.55,0.86047029]
[1693599568426,0.17225473,214.24,213.54,0.86047029]
[1693599568619,0.17225473,214.23,213.55,0.86047029]
[1693599568819,0.17225473,214.24,213.54,0.86047029]
[1693599569018,0.17225473,214.23,213.55,0.86047029]
[1693599569219,0.17225473,214.22,213.56,0.86047029]
[1693599569525,0.17225473,214.21,213.57,0.86047029]
[1693599569721,0.17225473,214.26,213.54,0.86047029]
[1693599569926,0.17225473,214.25,213.55,0.86047029]
[1693599570220,0.17225473,214.24,213.54,0.86047029]
[1693599570427,0.17225473,214.28,213.55,0.86047029]
[1693599570626,0.17225473,214.27,213.55,0.86047029]
[1693599570822,0.17225473,214.26,213.54,0.86047029]
[1693599571122,0.17225473,214.25,213.55,0.86047029]
[1693599571320,0.17225473,214.29,213.53,0.86047029]
[1693599572124,5.25331739,214.29,213.54,0.86047029]
[1693599572325,0.17225473,214.28,213.52,0.86047029]
[1693599572626,0.17225473,214.28,213.53,0.86047029]
[1693599573021,5.08106266,214.3,213.53,0.86047029]
[1693599573022,0.17225473,214.27,213.53,0.93638504]
[1693599573224,0.17225473,214.29,213.54,0.86047029]
[1693599573423,0.17225473,214.28,213.54,0.86047029]
[1693599573627,0.17225473,214.27,213.55,0.86047029]
[1693599573828,0.17225473,214.29,213.54,0.86047029]
[1693599574127,0.17225473,214.28,213.55,0.86047029]
[1693599574329,0.17225473,214.27,213.56,0.86047029]
[1693599574523,0.17225473,214.29,213.54,0.86047029]
[1693599574725,0.17225473,214.28,213.55,0.86047029]
[1693599574924,0.17225473,214.29,213.54,0.86047029]
[1693599575128,0.17225473,214.28,213.55,0.86047029]
[1693599575323,0.17225473,214.29,213.56,0.86047029]
[1693599575523,0.17225473,214.28,213.57,0.86047029]
[1693599575724,0.17225473,214.27,213.58,0.86047029]
[1693599575930,0.17225473,214.26,213.59,0.86047029]
[1693599576135,5.08106266,214.3,213.54,0.86047029]
[1693599576136,0.17225473,214.29,213.54,0.86047029]
[1693599576331,0.17225473,214.28,213.55,0.86047029]
[1693599576531,0.17225473,214.29,213.54,0.86047029]
[1693599576831,0.17225473,214.28,213.55,0.86047029]
[1693599577031,0.17225473,214.27,213.56,0.86047029]
[1693599577225,0.17225473,214.26,213.57,0.86047029]
[1693599577430,0.17225473,214.25,213.58,0.86047029]
[1693599577626,0.17225473,214.24,213.59,0.86047029]
[1693599577830,0.17225473,214.23,213.6,0.86047029]
[1693599578032,0.17225473,214.29,213.54,0.86047029]
[1693599578234,0.17225473,214.28,213.55,0.86047029]
[1693599578533,0.17225473,214.27,213.56,0.86047029]
[1693599578728,0.17225473,214.29,213.57,0.86047029]
[1693599578934,0.17225473,214.28,213.58,0.86047029]
[1693599579234,0.17225473,214.27,213.59,0.86047029]
[1693599579434,0.17225473,214.26,213.6,0.86047029]
[1693599579635,0.17225473,214.25,213.61,0.86047029]
[1693599579837,0.17225473,214.29,213.56,0.86047029]
[1693599580133,0.17225473,214.28,213.57,0.86047029]
[1693599580335,0.17225473,214.27,213.58,0.86047029]
[1693599580528,0.17225473,214.27,213.55,0.07591475]
[1693599580529,0.17225473,214.26,213.59,0.86047029]
[1693599580732,0.17225473,214.25,213.6,0.86047029]
[1693599580935,0.17225473,214.28,213.56,0.86047029]
[1693599581230,0.17225473,214.27,213.57,0.86047029]
[1693599581433,0.17225473,214.26,213.58,0.86047029]
[1693599581643,0.17225473,214.28,213.57,0.86047029]
[1693599581835,0.17225473,214.27,213.58,0.86047029]
[1693599582135,0.17225473,214.26,213.59,0.86047029]
[1693599582433,0.17225473,214.25,213.6,0.86047029]
[1693599582637,0.17225473,214.27,213.58,0.86047029]
[1693599582836,0.17225473,214.26,213.59,0.86047029]
[1693599583035,0.17225473,214.25,213.6,0.86047029]
[1693599583235,0.17225473,214.24,213.61,0.86047029]
[1693599583435,0.17225473,214.27,213.58,0.86047029]
[1693599583634,0.17225473,214.26,213.59,0.86047029]
[1693599583833,0.17225473,214.25,213.6,0.86047029]
[1693599584034,0.17225473,214.24,213.61,0.86047029]
[1693599584235,0.17225473,214.27,213.58,0.86047029]
[1693599584435,0.17225473,214.26,213.59,0.86047029]
[1693599584631,0.17225473,214.25,213.59,0.86047029]
[1693599584839,0.17225473,214.24,213.65,0.07591475]
[1693599585035,0.17225473,214.34,213.66,0.93638504]
[1693599585231,0.17225473,214.33,213.67,0.86047029]
[1693599585435,0.17225473,214.32,213.67,0.86047029]
[1693599585634,0.17225473,214.35,213.67,0.86047029]
[1693599585938,0.17225473,214.34,213.67,0.86047029]
[1693599586138,0.17225473,214.35,213.67,0.86047029]
[1693599586333,0.17225473,214.34,213.67,0.93638504]
[1693599586531,0.17225473,214.34,213.68,0.86047029]
[1693599586734,0.17225473,214.33,213.68,0.86047029]
[1693599587036,0.17225473,214.32,213.68,0.86047029]
[1693599587236,0.17225473,214.31,213.68,0.86047029]
[1693599587435,0.17225473,214.35,213.68,0.86047029]
[1693599587639,0.17225473,214.34,213.68,0.86047029]
[1693599587937,0.17225473,214.33,213.68,0.86047029]
[1693599588138,0.17225473,214.32,213.68,0.86047029]
[1693599588336,0.17225473,214.31,213.68,0.86047029]
[1693599588537,0.17225473,214.34,213.67,0.86047029]
[1693599588838,0.17225473,214.33,213.68,0.86047029]
[1693599589133,0.17225473,214.32,213.69,0.86047029]
[1693599589339,0.17225473,214.34,213.67,0.86047029]
[1693599589536,5.08106266,214.35,213.59,0.1518295]
[1693599589537,0.17225473,214.33,213.68,0.86047029]
[1693599589737,0.17225473,214.32,213.69,0.86047029]
[1693599589933,0.17225473,214.34,213.67,0.86047029]
[1693599590133,5.25331739,214.33,213.68,0.86047029]
[1693599590337,5.25331739,214.33,213.65,0.07591475]
[1693599590338,0.17225473,214.32,213.66,0.93638504]
[1693599590537,0.17225473,214.32,213.67,0.86047029]
[1693599590838,0.17225473,214.32,213.68,0.86047029]
[1693599591037,0.17225473,214.32,213.65,0.07591475]
[1693599591038,0.17225473,214.33,213.69,0.86047029]
[1693599591238,0.17225473,214.32,213.66,0.86047029]
[1693599591434,0.17225473,214.31,213.67,0.86047029]
[1693599591637,0.17225473,214.33,213.66,0.86047029]
[1693599591939,0.17225473,214.32,213.67,0.86047029]
[1693599592140,0.17225473,214.31,213.68,0.86047029]
[1693599592340,0.17225473,214.3,213.69,0.86047029]
[1693599592542,0.17225473,214.29,213.7,0.86047029]
[1693599592739,0.17225473,214.28,213.71,0.86047029]
[1693599592942,0.17225473,214.27,213.72,0.86047029]
[1693599593146,0.17225473,214.26,213.66,0.07591475]
[1693599593444,0.17225473,214.25,213.67,0.85969349]
[1693599593639,0.17225473,214.32,213.66,0.93560824]
[1693599593847,0.17225473,214.24,213.68,0.85969349]
[1693599594143,0.17225473,214.23,213.69,0.85969349]
[1693599594440,0.17225473,214.22,213.7,0.85969349]
[1693599594643,0.17225473,214.21,213.71,0.85969349]
[1693599594845,0.17225473,214.2,213.72,0.85969349]
[1693599595041,0.17225473,214.19,213.67,0.07591475]
[1693599595243,0.17225473,214.18,213.68,0.85969641]
[1693599595443,0.17225473,214.17,213.68,0.93561116]
[1693599595644,0.17225473,214.16,213.69,0.85969641]
[1693599595840,0.17225473,214.3,213.69,0.85969641]
[1693599596145,0.17225473,214.29,213.69,0.85969641]
[1693599596345,0.17225473,214.28,213.69,0.93561116]
[1693599596545,0.17225473,214.28,213.7,0.85969641]
[1693599599447,0.17225473,214.28,213.7,0.93561116]
[1693599599650,0.17225473,214.28,213.71,0.93561116]
[1693599599843,0.17225473,214.29,213.72,0.85969641]
[1693599600043,0.17225473,214.28,213.72,0.93561116]
[1693599600349,0.17225473,214.27,213.73,0.85969641]
[1693599600549,0.17225473,214.31,213.77,0.07591475]
[1693599600744,0.17225473,214.3,213.78,0.93561116]
[1693599600940,0.17225473,214.36,213.79,0.85969641]
[1693599601146,0.17225473,214.35,213.79,0.85969641]
[1693599601348,0.17225473,214.34,213.8,0.07591475]
[1693599601549,0.17225473,214.33,213.81,0.85969641]
[1693599601745,0.17225473,214.32,213.84,0.07591475]
[1693599601949,0.17225473,214.31,213.85,0.93561116]
[1693599602146,0.17225473,214.3,213.86,0.85969641]
[1693599602351,0.17225473,214.3,213.61,1.01219668]
[1693599602352,0.17225473,214.53,213.94,0.07591475]
[1693599602651,0.17164583,214.52,214.02,0.07591475]
[1693599602848,0.17164583,214.7,214.03,0.93561116]
[1693599603048,5.08106266,214.73,214.04,0.93561116]
[1693599603049,0.17164583,214.72,214.04,0.93561116]
[1693599603247,0.17164583,214.71,214.04,0.93561116]
[1693599603449,0.17164583,214.72,214.05,0.85969641]
[1693599603649,0.17164583,214.71,214.05,0.85969641]
[1693599603853,7.11348773,214.74,213.94,4.57638237]
[1693599603854,0.17164583,214.73,213.94,4.57638237]
[1693599604049,0.17164583,214.73,213.95,0.85842194]
[1693599604250,0.17164583,214.73,213.87,0.07591475]
[1693599604251,0.17164583,214.76,213.96,0.85842194]
[1693599604453,0.17164583,214.72,213.88,0.85842194]
[1693599604652,0.17164583,214.72,213.82,0.07591475]
[1693599604653,0.17164583,214.71,213.89,0.85842194]
[1693599604852,0.17164583,214.7,213.9,0.85842194]
[1693599605071,0.17164583,214.69,213.91,0.85842194]
[1693599605251,7.11348773,214.8,213.92,0.85842194]
[1693599605252,0.17164583,214.68,213.92,0.85842194]
[1693599605553,0.17164583,214.67,213.93,0.85842194]
[1693599605753,0.17164583,214.82,213.94,0.85842194]
[1693599605950,0.17164583,214.81,213.95,0.85842194]
[1693599606253,0.17164583,214.8,213.96,0.85842194]
[1693599606446,0.17164583,214.82,213.81,3.7193493]
[1693599606650,0.17164583,214.81,213.82,4.57777124]
[1693599606847,0.17164583,214.83,213.83,4.57777124]
[1693599607054,0.17164583,214.82,213.84,4.57777124]
[1693599607253,0.17164583,214.81,213.85,4.57777124]
[1693599607449,0.17164583,214.83,213.86,0.85842194]
[1693599607653,0.17164583,214.83,213.87,0.85842194]
[1693599607848,5.08106266,214.81,213.88,0.85842194]
[1693599608156,0.17164583,214.8,213.89,0.85842194]
[1693599608353,0.17164583,214.8,213.9,0.85842194]
[1693599608553,0.17164583,214.8,213.91,0.85842194]
[1693599608753,0.17164583,214.8,213.92,0.85842194]
[1693599608951,0.17164583,214.8,213.93,0.85842194]
[1693599609150,0.17164583,214.8,213.74,3.7193493]
[1693599609352,5.08106266,214.78,213.75,4.57820744]
[1693599609548,0.17164583,214.77,213.76,4.57820744]
[1693599609751,0.17164583,214.77,213.77,4.57820744]
[1693599609950,0.17164583,214.77,213.78,4.57820744]
[1693599610153,0.17164583,214.77,213.79,4.57820744]
[1693599610352,0.17164583,214.77,213.8,4.57820744]
[1693599610656,0.17164583,214.77,213.81,4.57820744]
[1693599610953,0.17164583,214.77,213.82,4.57820744]
[1693599611153,0.17164583,214.77,213.83,4.57820744]
[1693599611354,0.17164583,214.77,213.84,0.85885814]
[1693599611550,0.17164583,214.77,213.66,0.85885814]
[1693599611855,0.17164583,214.77,213.67,0.85885814]
[1693599612054,0.17164583,214.77,213.68,0.85885814]
[1693599612252,0.17164583,214.77,213.65,0.85885814]
[1693599612452,0.17164583,214.77,213.66,0.85885814]
[1693599612650,0.17164583,214.77,213.65,0.93477289]
[1693599612854,0.17164583,214.77,213.66,0.85885814]
[1693599613050,0.17164583,214.78,213.66,0.85885814]
[1693599613357,0.17164583,214.77,213.66,0.85885814]
[1693599613657,0.17164583,214.76,213.66,0.85885814]
[1693599613854,0.17164583,214.75,213.66,0.93477289]
[1693599614049,0.17164583,214.74,213.67,0.85885814]
[1693599614251,0.17164583,214.73,213.67,0.85885814]
[1693599614451,0.17164583,214.79,213.72,0.07591475]
[1693599614656,0.17164583,214.78,213.73,0.93477289]
[1693599614852,0.17164583,214.77,213.74,0.85885814]
[1693599615057,0.17164583,214.76,213.74,0.93477289]
[1693599615256,0.17164583,214.75,213.75,0.93477289]
[1693599615454,0.17164583,214.88,213.76,0.85885814]
[1693599615657,0.17164583,214.87,213.81,0.07591475]
[1693599615953,0.17164583,214.86,213.82,0.85885814]
[1693599616151,0.17164583,214.85,213.82,0.85885814]
[1693599616352,0.17164583,214.84,213.82,0.85885814]
[1693599616553,0.17164583,214.83,213.82,0.85885814]
[1693599616756,0.17164583,214.97,213.82,4.58389464]
[1693599616958,0.17164583,214.96,213.83,4.58389464]
[1693599617261,0.17164583,214.95,213.88,0.07591475]
[1693599617454,0.17164583,214.94,213.89,0.85885814]
[1693599617652,0.17164583,214.93,213.89,0.85885814]
[1693599617852,0.17164583,214.92,213.9,0.85885814]
[1693599618057,0.17164583,215.04,213.81,0.85885814]
[1693599618353,0.17164583,215.03,213.81,0.07591475]
[1693599618555,0.17164583,215.02,213.82,0.85885814]
[1693599618754,0.17164583,215.01,213.83,0.85885814]
[1693599618958,0.17164583,215.04,213.8,0.85885814]
[1693599619160,0.17164583,215.03,213.81,0.85885814]
[1693599619353,0.17164583,215.03,213.82,0.85885814]
[1693599619660,0.17164583,215.03,213.83,0.85885814]
[1693599619855,0.17164583,215.03,213.84,0.85885814]
[1693599620160,0.17164583,215.03,213.85,0.85885814]
[1693599620362,0.17164583,215.03,213.79,0.85885814]
[1693599620561,0.17164583,215.03,213.8,0.85885814]
[1693599620759,0.17164583,215.03,213.81,0.85885814]
[1693599620956,0.17164583,215.03,213.82,0.85885814]
[1693599621156,0.17164583,215.03,213.83,0.85885814]
[1693599621462,0.17164583,215.03,213.84,0.85885814]
[1693599621658,0.17164583,215.03,213.85,0.85885814]
[1693599621860,0.17164583,215.03,213.86,0.85885814]
[1693599622058,0.17164583,215.02,213.87,0.85885814]
[1693599622256,0.17164583,215.04,213.77,0.85885814]
[1693599622458,0.17164583,215.03,213.77,0.85885814]
[1693599622660,0.17164583,215.02,213.77,0.85885814]
[1693599622857,0.17164583,215.01,213.78,0.85885814]
[1693599623159,0.17164583,215.0,213.79,0.85885814]
[1693599623363,0.17164583,214.99,213.8,0.85885814]
[1693599623662,0.17164583,214.98,213.81,0.85885814]
[1693599623858,0.17164583,215.05,213.76,0.85885814]
[1693599624158,4.9884877,215.0,213.77,0.85885814]
[1693599624364,0.17164583,214.99,213.76,3.7250365]
[1693599624564,0.17164583,214.99,213.69,0.85885814]
[1693599624863,0.17164583,214.99,213.69,4.58389464]
[1693599625057,0.17164583,214.99,213.7,4.58389464]
[1693599625260,4.9884877,214.97,213.71,4.58389464]
[1693599625460,0.17164583,214.96,213.72,4.58389464]
[1693599625661,0.17164583,214.96,213.73,4.58389464]
[1693599625862,0.17164583,214.96,213.74,4.58389464]
[1693599626062,0.17164583,214.96,213.75,4.58389464]
[1693599626363,0.17164583,214.96,213.76,4.58389464]
[1693599626558,0.17164583,214.96,213.77,3.7250365]
[1693599626758,4.9884877,214.95,213.78,4.58389464]
[1693599626957,0.17164583,214.94,213.79,4.58389464]
[1693599627265,0.17164583,214.94,213.8,4.58389464]
[1693599627463,0.17164583,214.94,213.81,4.58389464]
[1693599627662,0.17164583,214.94,213.82,4.58389464]
[1693599627858,0.17164583,214.94,213.83,4.58389464]
[1693599628162,4.9884877,214.93,213.71,0.85885814]
[1693599628359,0.17164583,214.92,213.84,0.85885814]
[1693599628560,0.17164583,214.92,213.71,0.07398507]
[1693599628761,0.17164583,214.92,213.72,0.85885814]
[1693599629362,0.17164583,214.92,213.73,0.07398507]
[1693599629562,4.9884877,214.89,213.74,0.85885814]
[1693599629761,0.17164583,214.88,213.74,0.85885814]
[1693599630357,0.17164583,214.88,213.75,0.07398507]
[1693599630564,0.17164583,214.88,213.75,4.65787971]
[1693599630765,4.9884877,214.86,213.76,4.58389464]
[1693599630968,0.17164583,214.85,213.77,4.58389464]
[1693599631158,0.17164583,214.85,213.78,4.58389464]
[1693599631466,4.9884877,214.83,213.79,4.65787971]
[1693599631665,0.17164583,214.82,213.8,4.58389464]
[1693599631864,0.17164583,214.82,213.81,4.58389464]
[1693599632064,0.17164583,214.82,213.8,0.85885814]
[1693599632365,4.9884877,214.8,213.82,0.07398507]
[1693599632664,0.17164583,214.79,213.83,0.85885814]
[1693599633261,0.17164583,214.79,213.83,0.93284321]
[1693599633464,4.9884877,214.77,213.87,0.07398507]
[1693599633665,0.17164583,214.76,213.88,0.85885814]
[1693599634468,4.9884877,214.71,213.93,0.07398507]
[1693599634767,0.17164583,214.7,213.94,0.85885814]
[1693599636865,0.17164583,214.7,213.94,0.93284321]
[1693599637066,5.16013353,214.7,213.95,0.85885814]
[1693599637266,0.17164583,214.69,213.95,0.85885814]
[1693599638669,4.9884877,214.68,213.96,0.85885814]
[1693599638871,0.17164583,214.67,213.97,0.85885814]
[1693599639070,0.17164583,214.67,213.98,0.85885814]
[1693599639269,0.17164583,214.67,213.99,0.85885814]
[1693599639469,0.17164583,214.67,214.0,0.85885814]
[1693599639669,0.17164583,214.67,214.01,0.85885814]
[1693599639867,0.17164583,214.67,213.94,0.07398507]
[1693599639868,0.17164583,214.67,214.02,0.85885814]
[1693599640071,0.17164583,214.67,213.95,0.85885814]
[1693599640271,0.17164583,214.67,213.96,0.85885814]
[1693599640467,0.17164583,214.67,213.97,0.85885814]
[1693599640773,5.16013353,214.67,213.98,0.85885814]
[1693599640972,0.17164583,214.66,213.99,0.85885814]
[1693599641273,0.17164583,214.66,214.0,0.85885814]
[1693599641467,0.17164583,214.66,214.01,0.85885814]
[1693599641667,0.17164583,214.66,214.02,0.85885814]
[1693599641869,0.17164583,214.66,214.03,0.85885814]
[1693599642068,0.17164583,214.66,213.94,0.07398507]
[1693599642271,0.17164583,214.66,213.95,0.85848757]
[1693599644071,0.17164583,214.66,213.89,0.85848757]
[1693599644672,4.9884877,214.6,213.89,0.85848757]
[1693599644974,0.17164583,214.59,213.89,0.85848757]
[1693599646177,5.16013353,214.59,213.89,0.85848757]
[1693599646378,0.17164583,214.58,213.89,0.85848757]
[1693599647473,0.17164583,214.58,213.89,0.93247264]
[1693599647678,0.17164583,214.58,213.9,0.85848757]
[1693599648777,5.16013353,214.58,213.9,0.85848757]
[1693599648979,0.17164583,214.57,213.9,0.85848757]
[1693599650280,0.17164583,214.57,213.91,0.85848757]
[1693599650481,0.17164583,214.57,213.92,0.85848757]
[1693599650681,0.17164583,214.57,213.9,0.85848757]
[1693599650883,0.17164583,214.57,213.91,0.85848757]
[1693599651096,0.17164583,214.57,213.92,0.85848757]
[1693599651284,0.17164583,214.57,213.93,0.85848757]
[1693599651485,0.17164583,214.57,213.94,0.85848757]
[1693599651679,0.17164583,214.57,213.89,0.85848757]
[1693599651881,0.17164583,214.57,213.9,0.85848757]
[1693599652083,0.17164583,214.57,213.89,0.85848757]
[1693599652382,0.17164583,214.57,213.9,0.85848757]
[1693599652684,0.17164583,214.57,213.91,0.85848757]
[1693599653084,5.16013353,214.57,213.91,0.85848757]
[1693599653284,0.17164583,214.56,213.92,0.07398507]
[1693599653486,0.17164583,214.58,213.93,0.85848757]
[1693599653786,0.17164583,214.57,213.93,0.93247264]
[1693599653980,0.17164583,214.57,213.94,0.85848757]
[1693599655680,0.17164583,214.57,213.94,0.93247264]
[1693599655886,5.16013353,214.57,213.95,0.85848757]
[1693599656080,0.17164583,214.56,213.95,0.85848757]
[1693599656484,5.16013353,214.56,213.95,0.93247264]
[1693599656685,0.17164583,214.55,213.96,0.85848757]
[1693599657787,4.9884877,214.54,213.97,0.07398507]
[1693599657989,0.17164583,214.53,214.01,0.07398507]
[1693599658184,0.17164583,214.57,214.02,0.85848757]
[1693599658389,0.17164583,214.56,214.02,0.85848757]
[1693599658582,0.17164583,214.58,214.02,0.85848757]
[1693599658786,0.17164583,214.57,214.02,0.85848757]
[1693599659082,0.17164583,214.56,214.02,0.85727846]
[1693599659288,0.17164583,214.55,214.02,0.85727846]
[1693599659483,0.17164583,214.54,214.02,0.85727846]
[1693599659684,0.17164583,214.53,214.0,0.07398507]
[1693599659892,0.17164583,214.52,214.01,0.85851319]
[1693599660085,0.17164583,214.56,214.01,0.85851319]
[1693599660391,0.17164583,214.55,214.01,0.85851319]
[1693599660591,0.17164583,214.54,214.01,0.85851319]
[1693599660890,0.17164583,214.53,214.01,0.85851319]
[1693599661091,0.17164583,214.56,214.01,0.85851319]
[1693599661284,0.17164583,214.55,214.01,0.85851319]
[1693599661489,0.17164583,214.56,214.01,0.85851319]
[1693599661689,0.17164583,214.55,214.01,0.85851319]
[1693599661888,0.17164583,214.56,214.01,0.85851319]
[1693599662090,0.17164583,214.55,214.01,0.85851319]
[1693599663288,0.17164583,214.55,214.01,0.93249826]
[1693599663493,0.17164583,214.54,214.02,0.85851319]
[1693599663793,4.9884877,214.57,214.02,0.85851319]
[1693599663794,0.17164583,214.53,214.02,0.85851319]
[1693599663992,0.17164583,214.52,214.02,0.85851319]
[1693599664192,0.17164583,214.51,214.02,0.85851319]
[1693599664394,0.17164583,214.5,214.02,0.85851319]
[1693599664592,4.9884877,214.57,214.02,0.85851319]
[1693599664593,0.17164583,214.49,214.02,0.85851319]
[1693599664792,6.98388278,214.6,214.02,0.85851319]
[1693599664793,0.17164583,214.56,214.02,0.85851319]
[1693599664994,0.17164583,214.55,214.02,0.93249826]
[1693599665191,0.17164583,214.55,214.03,0.85851319]
[1693599665393,0.17164583,214.54,214.03,0.85851319]
[1693599665594,0.17164583,214.53,214.03,0.85851319]
[1693599665790,0.17164583,214.58,214.03,0.85851319]
[1693599665988,0.17164583,214.57,214.03,0.85851319]
[1693599666187,0.17164583,214.56,214.03,0.85851319]
[1693599666391,0.17164583,214.58,214.03,0.85851319]
[1693599666591,0.17164583,214.57,214.03,0.85851319]
[1693599666788,0.17164583,214.56,214.03,0.85851319]
[1693599667093,0.17164583,214.55,214.03,0.85851319]
[1693599667288,0.17164583,214.58,214.03,0.85851319]
[1693599667493,0.17164583,214.57,214.03,0.85851319]
[1693599667694,0.17164583,214.56,214.03,0.85851319]
[1693599667890,4.9884877,214.59,214.03,0.85851319]
[1693599667891,0.17164583,214.58,214.03,0.85851319]
[1693599668095,0.17164583,214.57,214.03,0.85851319]
[1693599668394,0.17164583,214.56,214.03,0.85851319]
[1693599668597,0.17164583,214.55,214.03,0.85851319]
[1693599668894,0.17164583,214.54,214.03,0.85851319]
[1693599669096,0.17164583,214.53,214.03,0.85851319]
[1693599669402,0.17164583,214.52,214.03,0.85851319]
[1693599669698,0.17164583,214.51,214.03,0.85851319]
[1693599669896,4.9884877,214.59,214.03,0.85851319]
[1693599669897,0.17164583,214.5,214.03,0.85851319]
[1693599670092,0.17164583,214.58,214.06,0.07398507]
[1693599670397,0.17164583,214.57,214.07,0.93249826]
[1693599670597,0.17164583,214.56,214.08,0.85851319]
[1693599670792,0.17164583,214.63,214.08,0.85851319]
[1693599670993,0.17164583,214.62,214.08,0.85851319]
[1693599671194,0.17164583,214.61,214.08,0.85851319]
[1693599671497,0.17164583,214.6,214.09,0.85851319]
[1693599671793,0.17164583,214.59,214.1,0.85851319]
[1693599671998,0.17164583,214.58,214.05,0.07398507]
[1693599672297,0.17164583,214.57,214.06,0.8581751]
[1693599672497,0.17164583,214.56,214.06,0.8581751]
[1693599672697,0.17164583,214.55,214.06,0.8581751]
[1693599672894,0.17164583,214.64,214.06,0.8581751]
[1693599673089,0.17164583,214.63,214.07,0.8581751]
[1693599673295,0.17164583,214.62,214.08,0.8581751]
[1693599673497,0.17164583,214.65,214.05,0.8581751]
[1693599673797,0.17164583,214.64,214.06,0.8581751]
[1693599673997,0.17164583,214.63,214.07,0.8581751]
[1693599674197,0.17164583,214.65,214.05,0.8581751]
[1693599674390,0.17164583,214.64,214.06,0.8581751]
[1693599674592,0.17164583,214.63,214.07,0.8581751]
[1693599674798,0.17164583,214.65,214.05,0.8581751]
[1693599674998,0.17164583,214.64,214.06,0.8581751]
[1693599675299,0.17164583,214.63,214.07,0.8581751]
[1693599675500,0.17164583,214.65,214.04,0.8581751]
[1693599675700,0.17164583,214.64,214.05,0.8581751]
[1693599675894,0.17164583,214.64,214.04,0.8581751]
[1693599676199,0.17164583,214.63,214.05,0.8581751]
[1693599676401,0.17164583,214.66,214.03,0.8581751]
[1693599676702,0.17164583,214.65,214.04,0.8581751]
[1693599676897,6.98388278,214.66,213.99,0.8581751]
[1693599677094,0.17164583,214.65,214.0,0.8581751]
[1693599677298,0.17164583,214.65,213.98,0.8581751]
[1693599677496,0.17164583,214.65,213.99,0.8581751]
[1693599677697,0.17164583,214.65,213.98,0.8581751]
[1693599677899,4.9884877,214.62,213.99,0.8581751]
[1693599678100,4.9884877,214.62,213.96,0.07398507]
[1693599678101,0.17164583,214.61,214.0,0.8581751]
[1693599678302,0.17164583,214.61,214.01,0.8581751]
[1693599678510,0.17164583,214.61,213.81,0.49323382]
[1693599678511,0.17164583,214.61,213.97,0.8581751]
[1693599678698,0.17164583,214.61,213.98,0.8581751]
[1693599678899,0.17164583,214.61,213.99,0.8581751]
[1693599679200,5.16013353,214.61,214.0,0.8581751]
[1693599679396,0.17164583,214.6,214.01,0.8581751]
[1693599679595,0.17164583,214.6,214.02,0.8581751]
[1693599679798,0.17164583,214.6,214.03,0.8581751]
[1693599679996,0.17164583,214.6,213.94,0.07398507]
[1693599680302,0.17164583,214.6,213.95,0.858459]
[1693599680698,5.16013353,214.6,213.95,0.858459]
[1693599680899,0.17164583,214.59,213.95,0.858459]
[1693599681498,5.16013353,214.59,213.95,0.858459]
[1693599681801,0.17164583,214.58,213.96,0.858459]
[1693599682002,0.17164583,214.58,213.95,0.858459]
[1693599682203,0.17164583,214.58,213.96,0.858459]
[1693599682404,0.17164583,214.58,213.97,0.858459]
[1693599682606,0.17164583,214.58,213.98,0.858459]
[1693599682806,5.16013353,214.58,213.95,0.858459]
[1693599683000,5.16013353,214.58,213.96,0.858459]
[1693599683001,0.17164583,214.57,213.96,0.858459]
[1693599683200,0.17164583,214.57,213.95,0.858459]
[1693599683405,0.17164583,214.57,213.96,0.858459]
[1693599683601,0.17164583,214.57,213.95,0.93244407]
[1693599683805,0.17164583,214.57,213.96,0.858459]
[1693599684708,0.17164583,214.57,213.96,0.93244407]
[1693599684909,0.17164583,214.57,213.97,0.858459]
[1693599685105,0.17164583,214.57,213.96,0.858459]
[1693599685310,0.17164583,214.57,213.97,0.858459]
[1693599685509,0.17164583,214.57,213.96,0.858459]
[1693599685710,0.17164583,214.57,213.97,0.858459]
[1693599685910,5.16013353,214.57,213.97,0.858459]
[1693599686111,0.17164583,214.56,213.97,0.858459]
[1693599687506,0.17164583,214.56,213.97,0.93244407]
[1693599687710,0.17164583,214.56,213.98,0.858459]
[1693599688612,5.16013353,214.56,213.98,0.858459]
[1693599688806,0.17164583,214.55,213.98,0.93244407]
[1693599689009,0.17164583,214.55,213.99,0.858459]
[1693599689913,5.16013353,214.55,213.99,0.858459]
[1693599690113,0.17164583,214.54,213.99,0.858459]
[1693599690615,0.17164583,214.54,213.99,0.93244407]
[1693599690814,0.17164583,214.54,214.0,0.858459]